bitfinex/quotes_SOLUSD_20241202
["timestamp","ask_amount","ask_price","bid_price","bid_amount"]
[1733131373871,164.44314289,227.24,227.15,4.409]
[1733131374177,26.74314289,227.19,227.15,4.409]
[1733131374785,26.74314289,227.2,227.13,31.15214289]
[1733131374985,26.74314289,227.2,227.14,0.25098]
[1733131375190,137.7,227.22,227.16,0.25098]
[1733131375191,26.74314289,227.21,227.16,0.25098]
[1733131375381,26.74314289,227.21,227.17,0.12549]
[1733131375763,26.74314289,227.2,227.17,0.12549]
[1733131375993,137.7,227.18,227.17,0.12549]
[1733131376183,164.44314289,227.18,227.17,0.12549]
[1733131376496,137.7,227.18,227.17,0.12549]
[1733131377985,164.44314289,227.18,227.17,0.12549]
[1733131379380,26.74314289,227.18,227.11,4.409]
[1733131379591,26.74314289,227.14,227.11,4.409]
[1733131379978,26.74314289,227.14,227.09,0.25098]
[1733131381073,26.74314289,227.14,227.1,0.12549]
[1733131382203,137.7,227.15,227.1,31.27763289]
[1733131382373,137.7,227.15,227.04,35.19704289]
[1733131382374,137.7,227.15,227.14,0.12549]
[1733131385396,137.7,227.15,227.14,31.52861289]
[1733131385570,137.7,227.21,227.16,0.12549]
[1733131385771,137.7,227.21,227.18,0.12549]
[1733131387377,16.2388,227.23,227.18,0.12549]
[1733131387884,26.74314289,227.21,227.18,0.12549]
[1733131388083,26.74314289,227.19,227.18,0.12549]
[1733131388289,26.74314289,227.19,227.09,26.74314289]
[1733131388473,16.2388,227.23,227.08,0.12549]
[1733131388474,164.44314289,227.18,227.11,0.37647]
[1733131388671,137.7,227.18,227.13,0.25098]
[1733131388898,137.7,227.18,227.15,0.25098]
[1733131389115,16.2388,227.23,227.18,0.12549]
[1733131389397,164.44314289,227.24,227.21,0.12549]
[1733131389898,26.74314289,227.23,227.21,0.12549]
[1733131390196,26.74314289,227.22,227.21,0.12549]
[1733131390579,33.04414289,227.26,227.21,0.12549]
[1733131390887,137.7,227.25,227.21,0.12549]
[1733131391511,164.44314289,227.25,227.21,0.12549]
[1733131392001,26.74314289,227.24,227.21,0.12549]
[1733131392201,26.74314289,227.23,227.21,0.12549]
[1733131392588,26.74314289,227.22,227.21,0.12549]
[1733131392786,26.74314289,227.22,227.16,4.409]
[1733131393296,15.0364,227.27,227.17,0.25098]
[1733131393297,26.74314289,227.2,227.17,0.25098]
[1733131393493,137.7,227.21,227.17,0.25098]
[1733131393716,137.7,227.24,227.19,31.40312289]
[1733131393996,164.44314289,227.24,227.2,0.12549]
[1733131394200,26.74314289,227.23,227.2,0.12549]
[1733131394391,26.74314289,227.22,227.2,0.12549]
[1733131394600,26.74314289,227.21,227.2,0.12549]
[1733131394908,26.74314289,227.21,227.14,4.409]
[1733131395207,26.74314289,227.19,227.14,4.409]
[1733131395379,164.44314289,227.2,227.15,0.25098]
[1733131395584,154.34320483,227.2,227.15,0.25098]
[1733131396203,16.64320483,227.18,227.16,0.12549]
[1733131396386,154.34320483,227.19,227.16,0.12549]
[1733131396585,16.64320483,227.18,227.16,0.12549]
[1733131398002,154.34320483,227.17,227.15,0.25098]
[1733131398205,137.7,227.17,227.15,0.25098]
[1733131398405,16.64320483,227.16,227.15,0.25098]
[1733131398587,16.64320483,227.16,227.07,16.64320483]
[1733131398902,154.34320483,227.15,227.08,0.25098]
[1733131399111,154.34320483,227.15,227.08,4.65998]
[1733131399984,154.34320483,227.15,227.04,8.4539]
[1733131399985,137.7,227.15,227.1,0.25098]
[1733131400180,137.7,227.16,227.13,0.12549]
[1733131400812,154.34320483,227.16,227.13,0.12549]
[1733131402713,16.64320483,227.15,227.13,0.12549]
[1733131403010,16.64320483,227.14,227.13,0.12549]
[1733131403394,16.64320483,227.14,227.08,4.409]
[1733131403591,16.64320483,227.09,227.0,16.64320483]
[1733131403814,16.64320483,227.06,226.99,16.64320483]
[1733131404016,16.64320483,227.06,227.01,0.25098]
[1733131404391,16.64320483,227.07,227.01,4.65998]
[1733131404611,16.64320483,227.07,227.01,4.409]
[1733131405490,26.64320483,227.15,227.02,21.30318483]
[1733131405491,16.64320483,227.09,227.02,21.30318483]
[1733131405811,16.64320483,227.1,227.04,0.25098]
[1733131405995,16.64320483,227.1,227.05,0.12549]
[1733131406190,16.64320483,227.11,227.05,0.12549]
[1733131406396,16.64320483,227.15,227.09,0.12549]
[1733131407103,16.64320483,227.14,227.09,0.12549]
[1733131407310,16.64320483,227.15,227.09,0.12549]
[1733131408323,16.64320483,227.14,227.09,0.12549]
[1733131408718,16.41089064,227.14,227.09,0.12549]
[1733131409021,16.64320483,227.13,227.09,0.12549]
[1733131409192,16.64320483,227.12,227.09,0.12549]
[1733131409516,16.3486,227.17,227.03,4.409]
[1733131409517,16.64320483,227.1,227.03,4.409]
[1733131409809,16.64320483,227.1,227.02,16.64320483]
[1733131410018,16.64320483,227.1,227.03,0.25098]
[1733131410320,16.64320483,227.08,227.03,0.25098]
[1733131410519,16.64320483,227.09,227.02,4.65998]
[1733131411420,16.64320483,227.09,227.03,0.12549]
[1733131411722,164.35190113,227.12,227.05,0.37647]
[1733131412011,26.65190113,227.1,227.05,0.37647]
[1733131413315,137.7,227.12,227.07,0.25098]
[1733131413503,137.7,227.11,227.08,0.12549]
[1733131414707,164.35190113,227.11,227.08,0.12549]
[1733131414906,137.7,227.11,227.08,0.12549]
[1733131415499,137.7,227.11,227.1,0.12549]
[1733131417398,26.65190113,227.12,227.1,0.12549]
[1733131418200,26.65190113,227.13,227.1,0.12549]
[1733131418707,26.65190113,227.11,227.1,0.12549]
[1733131419214,137.7,227.09,227.0,4.409]
[1733131419418,26.65190113,227.07,227.0,4.409]
[1733131419723,26.65190113,227.06,226.99,4.409]
[1733131420612,26.65190113,227.05,227.0,0.37647]
[1733131420798,26.65190113,227.05,227.0,0.12549]
[1733131421222,26.65190113,227.05,227.0,0.37647]
[1733131421430,26.65190113,227.06,227.0,4.78547]
[1733131422123,26.65190113,227.04,227.0,4.65998]
[1733131422515,26.65190113,227.04,227.02,0.25098]
[1733131422927,164.35190113,227.03,227.01,4.409]
[1733131423238,26.65190113,227.02,226.99,0.25098]
[1733131423609,164.35190113,227.0,226.87,6.5272]
[1733131423808,26.65190113,226.94,226.87,26.65190113]
[1733131424013,26.65190113,226.93,226.86,26.65190113]
[1733131424308,26.65190113,226.94,226.88,0.25098]
[1733131424619,26.65190113,226.95,226.9,0.25098]
[1733131424931,26.65190113,226.94,226.9,0.25098]
[1733131425523,26.65190113,226.94,226.91,0.12549]
[1733131426035,26.65190113,226.92,226.89,0.12549]
[1733131426531,26.65190113,226.92,226.89,0.37647]
[1733131426727,26.65190113,226.91,226.89,0.37647]
[1733131426929,26.65190113,226.9,226.82,26.65190113]
[1733131427132,26.65190113,226.88,226.8,26.65190113]
[1733131427305,26.65190113,226.88,226.81,26.65190113]
[1733131427810,26.65190113,226.88,226.82,0.25098]
[1733131428228,26.65190113,226.88,226.81,0.25098]
[1733131428725,164.35190113,226.88,226.82,0.12549]
[1733131428920,164.35190113,226.88,226.8,26.65190113]
[1733131428921,26.65190113,226.88,226.8,26.65190113]
[1733131429227,26.65190113,226.86,226.79,26.65190113]
[1733131429538,6.1499,226.9,226.8,26.90288113]
[1733131429539,26.65190113,226.87,226.8,26.90288113]
[1733131429736,26.65190113,226.88,226.82,0.25098]
[1733131430413,32.80180113,226.9,226.84,0.25098]
[1733131430609,26.65190113,226.91,226.85,0.12549]
[1733131431028,6.6309,226.95,226.87,0.12549]
[1733131431029,137.7,226.9,226.87,0.12549]
[1733131431229,137.7,226.9,226.89,0.12549]
[1733131432027,154.38097859,226.9,226.89,0.12549]
[1733131432709,137.7,226.9,226.89,0.12549]
[1733131432914,137.7,226.94,226.89,0.12549]
[1733131433838,154.38097859,226.94,226.89,0.12549]
[1733131436423,16.68097859,226.92,226.9,0.25098]
[1733131436635,16.68097859,226.93,226.91,0.12549]
[1733131437323,154.38097859,226.94,226.91,0.12549]
[1733131437944,137.7,226.91,226.78,0.87931218]
[1733131438127,137.7,226.91,226.87,0.25098]
[1733131438327,137.7,226.91,226.89,0.25098]
[1733131438527,137.7,226.91,226.89,4.65998]
[1733131439027,137.7,226.91,226.89,21.34095859]
[1733131439242,137.7,226.94,226.91,0.25098]
[1733131439542,137.7,226.94,226.92,0.12549]
[1733131439947,154.38097859,226.94,226.92,0.12549]
[1733131440448,137.7,226.94,226.92,0.12549]
[1733131440822,16.68097859,226.93,226.92,0.12549]
[1733131441022,16.68097859,226.93,226.82,16.68097859]
[1733131441343,16.68097859,226.88,226.81,16.68097859]
[1733131441517,16.68097859,226.86,226.79,16.68097859]
[1733131441723,16.68097859,226.86,226.8,4.409]
[1733131441928,137.7,226.87,226.81,4.409]
[1733131442129,137.7,226.87,226.82,0.25098]
[1733131442445,137.7,226.87,226.83,4.409]
[1733131442818,137.7,226.87,226.84,0.25098]
[1733131443020,137.7,226.87,226.85,0.12549]
[1733131443325,137.7,226.9,226.86,0.25098]
[1733131443524,137.7,226.9,226.87,0.12549]
[1733131443823,154.38097859,226.9,226.87,0.12549]
[1733131444038,137.7,226.9,226.87,0.12549]
[1733131444355,137.7,226.95,226.91,0.12549]
[1733131444647,137.7,226.96,226.93,0.12549]
[1733131445057,154.38097859,226.96,226.93,0.12549]
[1733131445342,137.7,226.93,226.84,0.12549]
[1733131445537,137.7,226.92,226.84,0.37647]
[1733131445729,137.7,226.92,226.75,11.3737]
[1733131445730,16.68097859,226.87,226.79,16.68097859]
[1733131445945,137.7,226.86,226.79,16.68097859]
[1733131446146,137.7,226.86,226.8,16.93195859]
[1733131446446,137.7,226.86,226.85,0.25098]
[1733131447255,137.7,226.86,226.85,0.37647]
[1733131447256,154.38097859,226.86,226.85,0.37647]
[1733131447432,16.68097859,226.86,226.85,0.37647]
[1733131447842,16.68097859,226.88,226.86,0.12549]
[1733131448328,16.68097859,226.87,226.85,0.25098]
[1733131450451,154.38097859,226.86,226.85,0.25098]
[1733131450641,154.38097859,226.86,226.82,0.12549]
[1733131450849,16.68097859,226.83,226.82,0.12549]
[1733131451032,16.68097859,226.83,226.82,0.25098]
[1733131452730,16.68097859,226.83,226.82,0.37647]
[1733131454254,137.7,226.82,226.76,0.5345279]
[1733131454455,15.52,226.85,226.76,0.5345279]
[1733131454456,16.68097859,226.78,226.76,0.5345279]
[1733131455342,16.68097859,226.78,226.77,0.25098]
[1733131455534,16.68097859,226.78,226.77,0.37647]
[1733131455936,16.68097859,226.78,226.77,0.12549]
[1733131456453,16.68097859,226.78,226.77,0.37647]
[1733131456963,16.68097859,226.79,226.77,0.37647]
[1733131457135,16.68097859,226.79,226.78,0.12549]
[1733131457340,16.68097859,226.8,226.78,0.12549]
[1733131458259,16.68097859,226.79,226.78,0.12549]
[1733131458753,16.68097859,226.8,226.78,0.12549]
[1733131459441,16.68097859,226.79,226.78,0.12549]
[1733131460168,154.38097859,226.8,226.78,0.12549]
[1733131460356,137.7,226.8,226.78,0.12549]
[1733131460946,137.7,226.8,226.79,16.93195859]
[1733131461258,137.7,226.8,226.79,17.05744859]
[1733131462068,137.7,226.8,226.79,21.46644859]
[1733131462576,15.52,226.85,226.8,0.12549]
[1733131462856,15.52,226.85,226.84,16.68097859]
[1733131463066,154.1263,226.95,226.85,4.78547]
[1733131463249,137.7,226.94,226.89,0.37647]
[1733131463763,154.38097859,226.94,226.89,0.37647]
[1733131464143,137.7,226.94,226.89,0.37647]
[1733131464743,154.38097859,226.94,226.89,0.37647]
[1733131465158,137.7,226.94,226.89,0.37647]
[1733131465362,137.7,226.94,226.92,0.12549]
[1733131465551,137.7,226.96,226.94,0.12549]
[1733131466257,137.7,226.99,226.96,0.12549]
[1733131466647,137.7,227.01,226.98,0.12549]
[1733131466852,16.68097859,227.02,226.98,0.12549]
[1733131467247,16.68097859,227.03,226.98,0.12549]
[1733131467455,154.38097859,227.04,226.99,0.25098]
[1733131467659,137.7,227.04,227.0,0.12549]
[1733131468177,15.0314,227.05,227.0,0.12549]
[1733131468468,31.71237859,227.05,227.0,0.12549]
[1733131470054,16.68097859,227.04,227.0,0.12549]
[1733131471670,16.68097859,227.02,227.0,0.12549]
[1733131472171,16.68097859,227.01,227.0,0.12549]
[1733131472762,16.68097859,227.01,226.93,4.409]
[1733131472963,16.68097859,226.99,226.93,4.409]
[1733131473165,16.68097859,226.97,226.94,0.25098]
[1733131473370,16.68097859,226.96,226.94,0.25098]
[1733131473665,16.68097859,226.97,226.92,0.25098]
[1733131473851,16.68097859,226.97,226.91,4.409]
[1733131474366,16.68097859,226.95,226.91,4.409]
[1733131474567,16.68097859,226.95,226.92,0.25098]
[1733131475049,16.68097859,226.93,226.92,0.25098]
[1733131475251,16.68097859,226.93,226.87,4.409]
[1733131475584,16.68097859,226.92,226.88,0.37647]
[1733131475951,16.68097859,226.92,226.86,4.409]
[1733131476475,16.68097859,226.92,226.83,6.2966]
[1733131476476,16.68097859,226.9,226.84,4.409]
[1733131476769,16.68097859,226.88,226.85,0.25098]
[1733131476957,16.68097859,226.91,226.85,0.25098]
[1733131477770,16.68097859,226.92,226.87,0.25098]
[1733131477986,137.7,226.93,226.89,0.25098]
[1733131478277,154.38097859,226.98,226.92,0.12549]
[1733131478681,16.3076,226.99,226.94,0.12549]
[1733131478976,32.98857859,226.99,226.96,0.12549]
[1733131479159,16.68097859,226.97,226.96,0.12549]
[1733131479680,32.98857859,226.99,226.96,0.12549]
[1733131480250,16.68097859,227.0,226.96,0.12549]
[1733131481457,137.7,227.01,226.98,0.12549]
[1733131481771,154.38097859,227.05,227.0,0.12549]
[1733131481951,16.68097859,227.07,227.02,0.12549]
[1733131482572,16.68097859,227.06,227.02,0.12549]
[1733131484862,16.68097859,227.05,227.02,0.12549]
[1733131485680,16.68097859,227.04,227.02,0.12549]
[1733131487075,16.68097859,227.05,227.02,0.12549]
[1733131488176,16.68097859,227.08,227.02,4.53449]
[1733131488382,137.7,227.09,227.06,0.12549]
[1733131488582,16.68097859,227.12,227.06,0.12549]
[1733131488769,137.7,227.14,227.06,0.12549]
[1733131488770,16.68097859,227.11,227.06,0.12549]
[1733131492380,16.68097859,227.1,227.06,0.12549]
[1733131492567,16.3093,227.15,227.06,0.12549]
[1733131492568,16.68097859,227.09,227.06,0.12549]
[1733131493560,16.68097859,227.08,227.06,0.12549]
[1733131494075,16.68097859,227.07,227.06,0.12549]
[1733131494580,137.7,227.05,226.93,23.14567859]
[1733131494762,16.68097859,227.0,226.93,23.14567859]
[1733131495168,16.68097859,226.99,226.94,4.403]
[1733131495479,16.68097859,226.98,226.95,4.403]
[1733131496065,16.68097859,226.98,226.96,0.12549]
[1733131496786,16.68097859,226.97,226.92,4.403]
[1733131496961,16.68097859,226.97,226.93,0.25098]
[1733131497165,16.68097859,226.98,226.93,0.25098]
[1733131497470,16.68097859,226.99,226.93,0.25098]
[1733131497676,16.68097859,227.0,226.93,21.33495859]
[1733131497981,16.68097859,227.01,226.96,0.12549]
[1733131499407,16.68097859,227.01,226.89,0.87896565]
[1733131499408,16.68097859,227.03,227.0,0.12549]
[1733131499776,154.38097859,227.04,227.0,0.12549]
[1733131499967,137.7,227.04,227.02,0.12549]
[1733131500487,16.68097859,227.07,227.02,0.12549]
[1733131500687,16.68097859,227.08,227.02,0.12549]
[1733131500872,16.68097859,227.06,227.02,0.12549]
[1733131501769,16.68097859,227.03,227.02,0.12549]
[1733131504465,137.7,227.01,226.92,4.403]
[1733131504661,16.68097859,226.96,226.92,4.403]
[1733131505082,16.68097859,226.93,226.85,16.68097859]
[1733131505382,16.68097859,226.93,226.86,16.68097859]
[1733131505565,16.68097859,226.94,226.87,16.93195859]
[1733131505767,137.7,226.95,226.91,0.25098]
[1733131506092,33.28017859,226.99,226.92,16.68097859]
[1733131506288,16.5992,226.99,226.95,16.93195859]
[1733131506470,16.68097859,227.0,226.96,0.12549]
[1733131506993,16.68097859,226.99,226.96,0.12549]
[1733131507291,16.68097859,226.98,226.96,0.12549]
[1733131507582,16.68097859,227.0,226.96,0.12549]
[1733131508284,16.68097859,226.99,226.96,0.12549]
[1733131508863,16.68097859,227.0,226.96,0.12549]
[1733131509589,16.68097859,226.99,226.96,0.12549]
[1733131509788,16.68097859,226.98,226.96,0.12549]
[1733131510300,137.7,226.96,226.89,4.403]
[1733131510469,154.38097859,226.96,226.87,4.403]
[1733131510666,16.68097859,226.93,226.87,4.403]
[1733131511066,16.68097859,226.92,226.87,4.403]
[1733131511478,16.68097859,226.92,226.87,0.25098]
[1733131511791,16.68097859,226.91,226.86,4.403]
[1733131512090,16.68097859,226.91,226.87,0.25098]
[1733131512303,16.68097859,226.92,226.87,0.25098]
[1733131512471,16.68097859,226.92,226.86,4.403]
[1733131512671,137.7,226.95,226.87,4.403]
[1733131512672,16.68097859,226.93,226.87,4.403]
[1733131512871,16.68097859,226.94,226.88,0.12549]
[1733131513071,16.68097859,226.93,226.88,0.37647]
[1733131513474,16.68097859,226.94,226.88,0.37647]
[1733131513679,154.38097859,226.95,226.9,0.25098]
[1733131513989,154.38097859,226.95,226.91,0.12549]
[1733131514495,16.68097859,226.93,226.91,0.12549]
[1733131515191,16.68097859,226.92,226.91,0.12549]
[1733131515495,16.68097859,226.93,226.91,0.12549]
[1733131516690,16.68097859,226.92,226.91,0.12549]
[1733131517193,137.7,226.91,226.81,4.403]
[1733131517492,16.68097859,226.88,226.81,4.403]
[1733131518571,16.68097859,226.87,226.83,0.12549]
[1733131519077,16.68097859,226.88,226.83,0.12549]
[1733131519278,16.68097859,226.87,226.83,0.12549]
[1733131519696,16.68097859,226.88,226.83,0.12549]
[1733131519986,16.68097859,226.89,226.85,0.12549]
[1733131520499,137.7,226.92,226.89,0.12549]
[1733131522282,154.38097859,226.92,226.89,0.12549]
[1733131522497,16.68097859,226.91,226.89,0.12549]
[1733131523399,154.38097859,226.92,226.89,0.12549]
[1733131524495,32.72327859,226.94,226.89,0.12549]
[1733131525088,16.68097859,226.92,226.89,0.12549]
[1733131525282,16.68097859,226.91,226.89,0.12549]
[1733131525576,16.68097859,226.93,226.91,0.12549]
[1733131525771,32.72327859,226.94,226.91,0.12549]
[1733131526082,16.0423,226.94,226.91,0.12549]
[1733131527081,16.0423,226.94,226.92,0.25098]
[1733131527280,16.68097859,226.97,226.93,0.12549]
[1733131527477,16.68097859,226.98,226.93,0.12549]
[1733131528783,137.7,226.99,226.93,0.12549]
[1733131528784,154.38097859,226.99,226.93,0.12549]
[1733131528986,32.39087859,227.0,226.95,0.12549]
[1733131529203,32.39087859,227.0,226.97,0.12549]
[1733131529497,16.68097859,226.99,226.97,0.12549]
[1733131530385,16.68097859,226.98,226.97,0.12549]
[1733131531603,154.38097859,227.02,226.97,0.12549]
[1733131531902,16.68097859,227.03,226.97,0.12549]
[1733131532100,16.68097859,227.02,226.97,0.12549]
[1733131532299,16.68097859,226.98,226.97,0.12549]
[1733131532692,16.68097859,226.98,226.97,4.403]
[1733131533200,23.08227859,226.98,226.86,16.68097859]
[1733131533507,16.68097859,226.91,226.84,16.68097859]
[1733131533707,16.68097859,226.92,226.86,4.403]
[1733131533884,33.29547859,226.95,226.9,0.25098]
[1733131534085,16.68097859,226.92,226.9,0.25098]
[1733131534496,16.68097859,226.93,226.87,0.25098]
[1733131534685,16.68097859,226.93,226.88,0.12549]
[1733131534881,16.68097859,226.92,226.88,4.52849]
[1733131535086,16.68097859,226.92,226.9,0.12549]
[1733131535598,16.68097859,226.93,226.9,0.12549]
[1733131536300,16.68097859,226.92,226.9,0.12549]
[1733131536513,154.38097859,226.94,226.9,0.12549]
[1733131536810,137.7,226.94,226.9,0.12549]
[1733131536991,137.7,226.94,226.93,0.37647]
[1733131537188,6.0434,227.04,226.93,0.37647]
[1733131537189,16.68097859,226.98,226.94,0.12549]
[1733131537395,22.72437859,227.04,226.94,0.12549]
[1733131537396,16.68097859,226.96,226.94,0.12549]
[1733131538186,16.68097859,226.98,226.94,0.12549]
[1733131538494,137.7,227.01,226.96,0.12549]
[1733131538689,136.7,227.01,226.97,4.65398]
[1733131538993,136.7,227.01,226.98,0.12549]
[1733131539593,16.68097859,227.0,226.98,0.12549]
[1733131540796,16.68097859,226.99,226.98,0.12549]
[1733131542510,16.68097859,226.99,226.9,4.403]
[1733131542688,16.68097859,226.93,226.86,16.68097859]
[1733131543108,27.72437859,227.04,226.82,0.87920702]
[1733131543109,16.68097859,226.96,226.9,0.25098]
[1733131543510,16.68097859,226.97,226.92,0.25098]
[1733131543693,136.7,226.99,226.92,0.25098]
[1733131543898,16.68097859,227.0,226.94,4.65398]
[1733131544087,16.68097859,227.0,226.95,0.12549]
[1733131544440,16.68097859,226.99,226.95,0.12549]
[1733131544710,16.68097859,227.0,226.95,0.12549]
[1733131545497,16.68097859,227.01,226.96,0.25098]
[1733131545694,153.38097859,227.02,226.97,0.12549]
[1733131545898,16.68097859,227.03,226.99,0.12549]
[1733131546406,15.0433,227.05,227.0,0.25098]
[1733131546601,15.0433,227.05,227.01,0.12549]
[1733131547516,16.68097859,227.04,227.01,0.12549]
[1733131548314,16.68097859,227.02,226.9,4.10380433]
[1733131548523,16.68097859,226.97,226.9,16.68097859]
[1733131549216,16.68097859,226.97,226.91,0.25098]
[1733131549429,16.68097859,226.96,226.91,4.403]
[1733131549598,16.68097859,226.96,226.9,4.403]
[1733131550121,16.68097859,226.97,226.91,0.37647]
[1733131550303,16.68097859,226.98,226.93,0.25098]
[1733131550508,16.68097859,226.98,226.94,0.12549]
[1733131551198,16.68097859,226.97,226.94,0.12549]
[1733131551394,16.68097859,226.96,226.94,0.12549]
[1733131552023,16.68097859,226.96,226.93,4.403]
[1733131552222,16.68097859,226.94,226.88,4.403]
[1733131552393,16.68097859,226.93,226.89,4.403]
[1733131552798,16.68097859,226.93,226.9,0.25098]
[1733131553324,16.68097859,226.94,226.91,0.12549]
[1733131555715,16.68097859,226.94,226.89,0.12549]
[1733131555920,16.68097859,226.93,226.89,0.12549]
[1733131556226,16.68097859,226.92,226.89,0.12549]
[1733131556599,16.68097859,226.91,226.85,4.403]
[1733131556898,16.68097859,226.9,226.82,16.68097859]
[1733131557206,16.68097859,226.9,226.83,22.08475251]
[1733131557412,16.68097859,226.91,226.85,4.65398]
[1733131557601,16.68097859,226.91,226.87,0.25098]
[1733131557800,136.7,226.92,226.89,0.25098]
[1733131558105,136.7,226.92,226.91,0.25098]
[1733131558311,136.7,226.92,226.91,5.52926392]
[1733131558505,136.7,226.92,226.91,9.93226392]
[1733131559720,136.7,226.92,226.91,9.93025896]
[1733131561711,16.68097859,226.93,226.92,0.12549]
[1733131562020,31.90257859,226.95,226.93,0.37647]
[1733131562230,15.2216,226.95,226.94,0.12549]
[1733131562417,31.90257859,226.95,226.94,0.12549]
[1733131563116,31.90257859,226.95,226.88,4.403]
[1733131563319,136.7,226.94,226.89,4.403]
[1733131563823,136.7,226.94,226.91,4.52849]
[1733131564930,136.7,226.94,226.91,0.12549]
[1733131565826,16.68097859,226.92,226.91,0.12549]
[1733131566420,16.68097859,226.92,226.9,4.403]
[1733131566607,16.68097859,226.91,226.9,4.403]
[1733131566808,16.68097859,226.91,226.88,4.29674164]
[1733131567005,16.68097859,226.9,226.89,0.25098]
[1733131567203,16.68097859,226.91,226.89,0.25098]
[1733131567624,16.68097859,226.93,226.86,4.65398]
[1733131567856,16.68097859,226.96,226.9,4.403]
[1733131568005,16.68097859,226.94,226.91,0.12549]
[1733131568703,16.68097859,226.96,226.91,0.12549]
[1733131569809,16.68097859,226.95,226.91,0.12549]
[1733131570337,16.68097859,226.96,226.91,0.12549]
[1733131571441,15.68097859,226.96,226.91,0.12549]
[1733131572512,16.68097859,226.95,226.91,0.12549]
[1733131572726,136.7,227.0,226.95,0.12549]
[1733131572727,16.68097859,226.99,226.95,0.12549]
[1733131573333,16.68097859,226.98,226.95,0.12549]
[1733131573634,16.68097859,226.97,226.95,0.12549]
[1733131573838,16.68097859,226.96,226.95,0.12549]
[1733131574131,16.68097859,226.96,226.91,4.403]
[1733131574311,16.68097859,226.92,226.91,4.403]
[1733131574515,16.68097859,226.92,226.91,4.65398]
[1733131575045,16.68097859,226.92,226.87,4.403]
[1733131575338,16.68097859,226.88,226.83,4.403]
[1733131575514,16.68097859,226.88,226.84,0.25098]
[1733131576536,16.68097859,226.88,226.85,0.12549]
[1733131576735,15.4081,226.96,226.85,0.12549]
[1733131576736,16.68097859,226.89,226.85,0.12549]
[1733131578023,15.4081,226.96,226.85,0.12549]
[1733131578024,16.68097859,226.9,226.85,0.12549]
[1733131578221,16.68097859,226.89,226.85,0.12549]
[1733131578918,16.68097859,226.92,226.87,0.12549]
[1733131579109,16.68097859,226.93,226.89,0.12549]
[1733131579316,16.68097859,226.91,226.89,0.12549]
[1733131579814,153.38097859,226.94,226.89,0.12549]
[1733131580742,16.68097859,226.97,226.91,0.12549]
[1733131580914,16.68097859,226.98,226.92,4.65398]
[1733131581113,16.68097859,226.98,226.93,0.12549]
[1733131583233,16.68097859,227.01,226.97,0.12549]
[1733131583431,16.68097859,227.04,226.99,0.12549]
[1733131584542,16.68097859,227.05,226.99,0.12549]
[1733131585644,16.68097859,227.08,227.03,0.12549]
[1733131585821,15.9901,227.09,227.05,0.12549]
[1733131586145,136.7,227.14,227.07,0.12549]
[1733131586349,136.7,227.16,227.07,0.12549]
[1733131586531,16.68097859,227.11,227.07,0.12549]
[1733131586919,143.3325,227.17,227.07,0.12549]
[1733131587123,153.38097859,227.17,227.11,0.12549]
[1733131587340,16.68097859,227.17,227.11,0.12549]
[1733131587641,16.68097859,227.15,227.11,0.12549]
[1733131587841,16.68097859,227.16,227.11,0.12549]
[1733131588347,16.68097859,227.15,227.13,0.12549]
[1733131589024,16.68097859,227.14,227.13,0.12549]
[1733131589633,16.68097859,227.16,227.13,0.12549]
[1733131590722,16.68097859,227.14,227.13,0.12549]
[1733131592020,16.68097859,227.14,227.04,19.09787859]
[1733131592223,16.68097859,227.09,227.02,16.68097859]
[1733131592429,16.68097859,227.07,227.0,16.68097859]
[1733131592635,16.68097859,227.06,226.99,16.68097859]
[1733131592837,16.68097859,227.06,227.0,0.25098]
[1733131593040,16.68097859,227.05,226.98,16.68097859]
[1733131593652,16.68097859,227.03,226.96,23.33647859]
[1733131593861,16.68097859,227.05,226.99,0.25098]
[1733131594544,16.68097859,227.08,227.02,0.12549]
[1733131595143,16.68097859,227.08,227.02,0.37647]
[1733131595441,32.28617859,227.12,227.07,0.12549]
[1733131595653,16.68097859,227.13,227.07,0.12549]